{"text_format":"1","workbook":"xlsx","n_sheets":5,"sheets":["Instrucciones","Ingreso de Datos_General","Ingreso de Datos_Manglar","Data ","Changes"],"not_rendered":{"charts":0,"images":1,"macros":1,"external_links":0,"defined_names":0,"comments":0,"pivot_tables":0},"unopened":[],"bounds":{"document_bytes":16777216,"sheet_cells":100000,"rows_first":2000,"rows_last":500,"rows_between":2000,"halvings":0,"cell_chars":16384,"cell_head_chars":4096},"cells_cut":0,"cells_raw":0,"read":"whole","date_system":"1900"}

{"sheet":"Instrucciones","index":0,"n_rows":45,"n_cols":9,"rows_kept":45,"cut":false,"hidden":false,"merged":[[9,1,9,14],[16,1,16,14],[17,1,17,14],[15,1,15,14],[13,1,13,14],[12,1,12,14],[11,1,11,14],[3,1,3,14],[4,1,4,14],[5,1,5,14],[7,1,7,14],[8,1,8,14],[6,1,6,14],[31,1,31,14],[41,1,41,7],[41,8,41,14],[42,1,42,7],[42,8,42,14],[33,1,33,14],[34,1,34,14],[35,2,35,13],[36,2,36,13],[39,1,39,14],[40,1,40,7],[40,8,40,14],[29,1,29,14],[18,1,18,14],[19,1,19,14],[20,1,20,14],[25,1,25,14],[27,1,27,14],[21,1,21,14],[22,1,22,14],[23,1,23,14],[26,1,26,14]]}
[]
[null,"Herramienta del PED de la Restauración"]
[]
[null,"INTRODUCCIÓN"]
[null,"Bajo la el Protocolo Forestal para México V3.0, la Reserva únicamente registrará proyectos que generen remociones de GEI que se determine sean adicionales a lo que hubiera sucedido en ausencia del mercado de carbono. Junto con las consideraciones legales,  la Prueba del Estándar de Desempeño (PED) evalúa criterios relacionados con la actividad del proyecto para identificar que el financiamiento de carbono proporciona un elemento importante para contrarrestar los riesgos de deforestación y degradación en el Área de Actividad. "]
[null,"\nLos impulsores de la deforestación y degradación pueden ser complejos. Esta herramienta supone que ciertas características regulatorias (por ej., limitaciones en el aprovechamiento), económicas (por ej., acceso a mercados), sociales (por ej., niveles de población) y biofísicas (por ej., características del suelo) pueden aumentar o disminuir el riesgo de deforestación y degradación forestal en un Área de Actividad.\n"]
[null,"\nEsta herramienta está diseñada para evaluar el cumplimiento de la prueba del estándar de desempeño para los proyectos de restauración. Tenga en cuenta que si su proyecto tiene un PMF autorizado por la SEMARNAT, le recomendamos que no continúe con un proyecto de restauración y que, en su lugar, considere registrar el proyecto bajo el MFI."]
[]
[null,"DESCRIPCIÓN"]
[null,"La herramienta se divide en 2 pestañas: una para Áreas de Actividad de Restauración con tres secciones, y la otra para Áreas de Actividad con manglares con una sección. \n\nNota: Para Áreas de Actividad sin manglares, sólo se requiere completar la primera pestaña (\"Ingreso de datos_General\"). Para Áreas de Actividad con manglares, sólo se requiere completar la segunda pestaña (\"Ingreso de Datos_Manglar), sin embargo la primera pestaña puede utilizarse si el área de actividad no pasa la prueba en la segunda pestaña. Si el Área de Actividad de manglar pasa en la primera pestaña pero no en la segunda, el proyecto pasa el PED. \n\nEstas cuatro secciones se describen a continuación: "]
[null,"Sección 1 - General"]
[null,"Esta sección está relacionada con el estado de protección del área.    "]
[null,"La protección puede considerarse de largo plazo donde se tienen decretos, leyes o reglamentos estipulados (por ejemplo, restricciones puntuales dentro de un Área Natural Protegida o una veda forestal), o temporales donde la protección se limita a un periodo te tiempo determinado (por ejemplo, participación en el Programa de Pago por Servicios Ambietales Hidrológicos de CONAFOR)."]
[null,"Esta herramienta asume que en estas áreas el riesgo de degradación y deforestación es menor que en áreas sin protección legal y por lo tanto el Área de Actividad deberá de demostrar, sigue habiendo riesgos importantes de deforestación/degradación y que el proyecto de captura de carbono ayudará con actividades puntuales a reducir estos riesgos, con lo cual se espera puedan aumentar los acervos de carbono en sitio"]
[null,"Sección 2 - General"]
[null,"Las preguntas de estas secciones están relacionadas con restricciones legales, actividades agropecuarias y presion urbana. "]
[null,"La herramienta asume que existe una renta potencial asociada a cada posible uso de suelo de cada terreno, es decir, la tierra tenderá a dedicarse a la actividad que produce la renta más alta. Bajo estas consideraciones la herramienta se basa en un análisis de literatura donde se asume que*:"]
[null,"1. El fácil acceso a mercados aumenta el riesgo de conversión. Un estudio del Banco Mundial indica que cuando el acceso al camino es inmediato y el tiempo de traslado es de 1 min, existe una probabilidad del 63% de uso agrícola, de la cual el 49.2% sería con fines comerciales y 13.2% de semi-subsistencia. Si existe una distancia mayor a 10 km al camino más cercano, existe una probabilidad del 98% de que la tierra mantenga su cobertura natural. Si existe agricultura, esta será principalmente de subsistencia. "]
[null,"\n2. El riesgo de conversión es mayor cuando las prácticas agropecuarias se llevan a cabo con fines comerciales. Cuando hay un aumento en el precio de los productos, el riesgo de conversión es mayor. El estudio del Banco Mundial indica que un aumento del 1% en el precio de los productos agrícolas puede aumentar la probabilidad de deforestación en un 0.24%. \n"]
[null,"3.  Áreas de Actividad cerca de ciudades extensas tienen un mayor riesgo de conversión de expansión y desarrollo urbano que aquellas en zonas rurales. "]
[null,"4. Aquellas áreas que reciben subsidios agropecuarios, el riesgo de conversión es más alto."]
[null,"5. En cuanto a las características biofísicas, es más probable que en un terreno con poca pendiente se lleven a cabo actividades agrícolas, en comparación con una mayor pendiente. "]
[null,"6. En áreas previamente degradadas, es necesario financiar actividades puntuales de manejo para restaurar estas área y volverlas más resilientes a eventos naturales como incendios, plagas y huracanes. "]
[null,"El Dueño Forestal deberá de responder las Secciones 2 y 3. Si se considera que el Área de Actividad aún no pasa la Prueba del Estándar de Desempeño, deberá de continuar con la Sección 4, que está relacionada con la degradación del área. "]
[null,"Sección 3 - General"]
[null,"El Dueño Forestal deberá de utilizar los lineamientos proporcionados en el PFM V3.0 (Apéndice C) para calcular la cobertura de copa del Área de Actividad (histórica y reciente), la cual deberá de ingresarse en esta hoja de cálculo."]
[null,"La Herramienta compara la cobertura de copa del Área de Actividad en dos periodos de tiempo para ver si hay una tendencia negativa. Si el cambio porcentual normalizado a 10 años es mayor al 10%, se considera que el área esta sufriendo degradación y por lo tanto el Área de Actividad pasa la prueba del estándar de desempeño. "]
[null,"A su vez, el Dueño Forestal deberá de proporcionar a la Reserva las actividades que ayduarán a detener las causas de degradación a partir del proyecto de captura de carbono forestal"]
[null,"Sección 1 - Manglar"]
[null,"Esta sección está relacionada con las Áreas de Actividad de manglar - sólo es necesario completarlo si el Área de Actividad contiene manglare. El Dueño Forestal utilizará el Sistema de Monitoreo de Manglares de México (SMMM) desarrollado por CONABIO** que evalúa la fragmentación y conectividad de las manglares, y los niveles de antropización (el nivel en que la infraestructura humana ha afectado a una región) en las regiones con manglares. El proyecto pasará el PED si hay suficiente riesgo de fragmentación y/o antropización en el Área de Actividad."]
[]
[null,"* Información obtenida de World Bank (1995) Roads, Lands, Markets and Deforestation. Policy Research Department. Environment, Infrastructure and Agriculutre Division. \n**http://www.conabio.gob.mx/informacion/gis/?vns=gis_root/biodiv/monmang/bimagfracn/ce_bcn_82gw#secc0t1"]
[]
[null,"REQUISITOS"]
[null,"Antes de proceder favor de tomar en cuenta las siguientes consideraciones."]
[null,null,"1. Las Áreas de Actividad de Manejo Forestal Mejorado, Reforestación, Sistemas Agroforestales, Sistemas Silvopastoriles, Bosques Urbanos Pequeños  y  Bosques Urbanos Grandes están exentas del uso de esta herramienta."]
[null,null,"2. Las respuestas deberán de ser lo más conservadoras posibles y reflejar la realidad del sitio. Las respuestas serán verificada durante la primera verificación. Si las respuestas no coinciden con la realidad se deberá de volver a realizar el ejercicio para asegurar que el Área de Actividad cumple con la Prueba del Estándar de Desempeño del PFM V3.0"]
[]
[]
[null,"INSTRUCCIONES"]
[null,"Paso 1. Tener un proyecto de Restauración potencial.\n",null,null,null,null,null,null,"Unicamente Áreas de Actividad de Restauración necesitan utilizar esta herramienta. "]
[null,"Paso 2. Responder las preguntas en el orden pre-establecido. ",null,null,null,null,null,null,"Cada pregunta tiene un botón que brinda más información para poder identificar la respuesta más adecuada. Si en el Área de Actividad no aplica alguna de las preguntas, favor de seleccionar No aplica.   "]
[null,"Paso 3. Revisar si el proyecto pasa la Prueba del Estándar de Desempeño. ",null,null,null,null,null,null,"Se considera que un Área de Actividad pasa la Prueba del Estándar de Desempeño si se cumple con los criterios de esta Herramienta"]
[]
[null,"Si se tienen cualquier pregunta o comentario favor de mandar un correo a policy@climateactionreserve.org"]

{"sheet":"Ingreso de Datos_General","index":1,"n_rows":31,"n_cols":14,"rows_kept":31,"cut":false,"hidden":false,"merged":[[10,17,10,25],[11,17,11,25],[13,1,13,9],[10,1,10,6],[11,1,11,6],[1,14,1,22],[7,1,8,6],[6,17,8,25],[6,9,6,10],[6,7,6,8],[6,11,6,12],[6,13,6,14],[16,1,16,11],[1,1,1,6],[2,1,2,6],[30,1,30,11],[12,1,12,6]]}
["Sección 1 - Proteccion a largo y corto plazo"]
[1.1000000000000001,"¿El Área de Actividad está bajo algún esquema de protección a largo plazo que NO permita el aprovechamiento comercial (por ej., Parque Nacional, Veda Forestal)?"]
[1.2,"¿El Área de Actividad está bajo algún esquema de protección temporal que NO permita el aprovechamiento comercial (por ej., Programa de Pago por Servicios Ambientales de CONAFOR)? "]
[]
[]
["Sección 2 - Riesgo de cambio de uso de suelo de forestal a no forestal (crecimiento urbano y actividades agropecuarias)"]
[null,null,null,null,null,null,null,"0 - 15 Minutos",null,"16 - 60 Minutos",null,"61 - 120 Minutos",null,"> 2 horas "]
[2.1," Favor de estimar el tamaño de la población, según el tiempo correspondiente que tardaría una persona en llegar del camino más cercano al Área de Actividad al poblado identificado. "]
[]
[]
[2.2000000000000002,"¿Las actividades agropecuarias que se llevan a cabo fuera del AA (considerando un radio de 1 km del límite geográfico definido) son con fines de subsistencia o comerciales?"]
[2.2999999999999998,"Si las actividades agropecuarias son con FINES COMERCIALES, ¿el precio del producto principal ha incrementado, mantenido igual o disminuido en el último año?"]
[2.4,"¿Las actividades agropecuarias que se llevan a cabo fuera de las AA (considerando un radio de 1 km del límite geográfico definido y dentro del predio del Dueño Forestal) reciben subsidios del gobierno para llevar a cabo actividades agrícolas o pecuarias?"]
[2.5,"¿Cómo se caracteriza la pendiente en el Área de Actividad?"]
[]
[]
[null,{"$f":"IF('Data '!E10+'Data '!E17>=0.6,\"El Area de Actividad pasa la Prueba del Estándar de Desempeño, no es necesario continuar con el cuestionariol\",\"Favor de continuar con el cuestionario\")","v":"Favor de continuar con el cuestionario"}]
[]
["Sección 3 - Análisis de Degradación a partir de la Cobertura de Copa"]
[]
[3.1,"¿Cuál es el estimado del promedio de cobertura de copa (porcentual) calculado con una imagen satelital HISTORICA? (Ver Apéndice C del PFM)",null,null,null,null,null,null,"%"]
[]
[3.2,"¿Cuál es el año de la imagen histórica?"]
[]
[3.3,"¿Cuál es el estimado del promedio (porcentual) de cobertura de copa calculado con una imagen satelital ACTUAL? (Ver Apéndice C del PFM)",null,null,null,null,null,null,"%"]
[]
[3.4,"¿Cuál es el año de la imagen más reciente?"]
[]
[null,"Cambio porcentual ",null,null,null,null,null,{"$f":"'Data '!C83","v":{"$error":"#DIV/0!"}}]
[]
[null,{"$f":"IF('Data '!E10+'Data '!E17>=0.6,\"El Área de Actividad pasa la Prueba del Estándar de Desempeño\",IF('Data '!E77>0,\"El Área de Actividad pasa la Prueba del Estándar de Desempeño\",\"El Área de Actividad NO cumple con los criterios mínimos para pasar la Prueba del Estándar de Desempeño bajo el PFM V2.0\"))","v":{"$error":"#DIV/0!"}}]

{"sheet":"Ingreso de Datos_Manglar","index":2,"n_rows":24,"n_cols":4,"rows_kept":24,"cut":false,"hidden":false,"merged":[[16,0,16,20],[11,19,11,20],[12,19,12,20],[13,19,13,20],[10,19,10,20],[23,2,23,11],[0,0,0,18],[1,1,1,18],[2,1,2,18],[3,1,3,18],[4,1,4,18],[5,2,5,18],[6,2,6,18],[7,1,7,18],[8,2,8,18],[9,3,9,18],[10,3,10,18],[11,3,11,18],[12,3,12,18],[13,3,13,18],[14,0,14,20]]}
["Instrucciones:"]
["1.","Utilizando las instrucciones en el Apendice C.1.3, crea un shapefile con puntos aleatorios dentro del Area de Proyecto en la herramienta de i-Tree Canopy*. Descargar el archivo .shp y .csv."]
["2.","Del geoportal de la CONABIO**, bajar el mapa más reciente de \"Fragmentación\" que se encuentra en el tema Fragmentación y Conectividad así como el mapa de \"Antropización\" que se encuentra en el tema  de  Aspectos socioeconomicos del SMMM.\n*NOTAR: El primero es el mapa de conectividad, no el de fragmentación. Por lo tanto, es necesario invertir los valores de conectividad a valores de fragmentacion. Por ejemplo, un valor de \"Muy Alta\" en la capa corresponde a un valor de \"Muy Baja\" en esta herramienta. Para más información, ver el paso 4."]
["3.","En GoogleEarth, superponer el .shp de los puntos aleatorios en su proyecto y los .shp descargado de la herramienta SMMM."]
["4.","Hacer clic en cada punto seleccionado al azar y anotar el valor asignado por la capa de fragmentación y por la capa de antropización.  Documentar las valores en el .csv que se descargó de i-Tree Canopy."]
[null,"4.a.","Para la fragmentación, asignar un valor de 5 a \"Muy bajo\", 4 a \"Bajo,\" 3 a \"Medio,\" 2 a \"Alto,\" y 1 a \"Muy Alto.\"\n\nFavor de notar: el color rojo en el mapa corresponde a alto conectividad, y el color verde corresponde a bajo conectividad. Además, entendemos que, aunque los puntos seleccionados al azar no se encuentren en sí mismos en zonas de alto riesgo, pueden estar cerca en distancia de zonas de alto riesgo. Para cada punto, el usuario puede utilizar el mayor de los valores asignados al punto por la herramienta y el valor ponderado de la zona de mayor riesgo dentro de un buffer de 3 km, como se indica a continuación:\n1. Si la zona de mayor riesgo se encuentra a menos de 1 km del punto, el valor final asignado al punto a efectos de esta prueba será el 90 del valor asignado a la zona de mayor riesgo.\n2. Si la zona de mayor riesgo está entre 1 y 2 km del punto, tome el 75% del valor asignado a la zona de mayor riesgo. Utilice el valor más alto (ya sea el valor asignado al punto o el valor ponderado de la zona de mayor riesgo dentro del buffer de 1-2km).\n3. Si la zona de mayor riesgo se encuentra entre 2-3km del punto, calcule el 50% del valor asignado a la zona de mayor riesgo. Utilice el valor más alto (ya sea el valor asignado al punto o el valor ponderado de la zona de mayor riesgo dentro del buffer de 2-3km)."]
[null,"4.b.","Para la antropización, los valores pueden mantenerse tal cual."]
["5.","Una vez que todos los puntos tienen un valor para la fragmentación y la antropización, tomar el promedio de todos los valores para cada capa. Introducirlos en los campos desplegables abajo."]
[null,"5.a.","Para la fragmentacion:"]
[null,null,null,"Un promedio de 1 es Muy Alto"]
[null,null,null,"Un promedio de 1.01 - 2.00 es Alto"]
[null,null,null,"Un promedio de 2.01 - 3.00 es Medio"]
[null,null,null,"Un promedio de 3.01 - 4.00 es Bajo "]
[null,null,null,"Un promedio de 4.01 - 5.00 es Muy Bajo"]
["*https://canopy.itreetools.org/\n**http://www.conabio.gob.mx/informacion/gis/?vns=gis_root/biodiv/monmang/bimagfracn/"]
[]
["Sección 1 - Fragmentación y Antropización en el Área de Proyecto"]
[]
[1.1000000000000001,"¿Cuál es la puntuación media de fragmentación? "]
[]
[1.2,"¿Cuál es la puntuación media de antropizacion?"]
[]
[]
[null,null,{"$f":"IF('Data '!E110>=8,\"El Área de Actividad pasa la Prueba del Estándar de Desempeño\",\"El Área de Actividad no pasa la Prueba del Estándar de Desempeño\")","v":"El Área de Actividad no pasa la Prueba del Estándar de Desempeño"}]

{"sheet":"Data ","index":3,"n_rows":110,"n_cols":19,"rows_kept":110,"cut":false,"hidden":true,"merged":[[13,1,13,3],[73,1,73,3],[2,1,2,3],[86,1,86,3]]}
[null,null,null,null,"additional > 0.4"]
[]
[null,"Proteccion a corto y largo plazo"]
[null,null,null,null,null,null,"Largo plazo","Valor"]
[null,null,"Valores",null,null,null,"Sin Protección",0]
[null,"Protección Largo Plazo",2,"Sí",null,null,"Bajo Protección",-1]
[null,"Protección Corto Plazo",2,"No"]
[null,null,null,null,null,null,"Corto plazo","Valor"]
[null,"Protección largo plazo",{"$f":"IF(C6=1,H6,H5)","v":0},null,"Total",null,"Sin Protección",0]
[null,"Protección a corto plazo",{"$f":"IF(C7=1,H10,H11)","v":0},null,{"$f":"C10+C9","v":0},null,"Bajo Protección",-0.25]
[]
[]
[]
[null,"Cambio de uso de suelo (deforestación)",null,null,{"$f":"E10+E17","v":0.15000000000000002}]
[null,null,null,null,null,null,"Values",1,2,3,4,5,6,7]
[null,"Tiempo","Tamano de Poblacion",null,"Total (3)",null,"Tiempo/Habitantes","< 2,499","2,500 - 29,999","30,000 - 99,999","100,000 - 249,999","250,000 - 499,999","> 500,000","No Aplica"]
[null,"0 15 min","< 2,499",null,{"$f":"E35+E44+E62+E70","v":0.15000000000000002},null,"0 15 min",{"$f":"I17/3","v":1.1111111111111112E-2},{"$f":"J17/3","v":3.3333333333333333E-2},{"$f":"K17/3","v":9.9999999999999992E-2},0.3,0.4,0.5,0]
[null,"15 a 60 min","2,500 - 29,999",null,null,null,"16 to 60",{"$f":"H17/2","v":5.5555555555555558E-3},1.6666666666666666E-2,4.9999999999999996E-2,0.15,0.2,0.25,0]
[null,"1 a 2 horas","30,000 - 99,999",null,null,null,"61 to 120",{"$f":"H18/4","v":1.3888888888888889E-3},{"$f":"I18/4","v":4.1666666666666666E-3},1.2499999999999999E-2,{"$f":"K18/4","v":3.7499999999999999E-2},0.05,{"$f":"M18/4","v":6.25E-2},0]
[null,"2 a 5 horas","100,000 - 249,999",null,null,null,"Mas 2 horas",{"$f":"H19/5","v":2.7777777777777778E-4},{"$f":"I19/5","v":8.3333333333333328E-4},2.4999999999999996E-3,7.4999999999999997E-3,0.01,{"$f":"M19/5","v":1.2500000000000001E-2},0]
[null,null,"250,000 - 499,999"]
[null,null,"> 500,000"]
[null,null,"No aplica"]
[]
[null,"Tamano poblacion/ 0 - 15",7]
[null,"Valor",{"$f":"HLOOKUP(C25,H15:N20,3,0)","v":0}]
[null,null,null,null,null,null,null,null,null,null,null,null,null,null,"Comercial ","Aumentado","Subsidio","Plano",{"$f":"K39+H56+I65","v":0.65}]
[null,"Tamaño poblacion/ 16-60",7,null,null,null,null,null,null,null,null,null,null,null,"Comercial ","Mantenido","Subsidio","Plano",{"$f":"J39+H56+I65","v":0.35000000000000003}]
[null,"Valor",{"$f":"HLOOKUP(C28,H15:N20,4,0)","v":0},null,null,null,null,null,null,null,null,null,null,null,"Comercial ","Aumentado","Subsidio","Medio",{"$f":"K39+H56+I66","v":0.45}]
[null,null,null,null,null,null,null,null,null,null,null,null,null,null,"Comercial ","Mantenido","Subsidio","Medio",{"$f":"J39+H56+I66","v":0.15000000000000002}]
[null,"Tamaño poblacion/ 61-120",7,null,null,null,null,null,null,null,null,null,null,null,"Comercial ","Aumentado","Sin sub","Plano",{"$f":"K39+I65","v":0.60000000000000009}]
[null,"Valor",{"$f":"HLOOKUP(C31,H15:N20,5,0)","v":0},null,null,null,null,null,null,null,null,null,null,null,"Comercial ","Mantenido","Sin sub","Plano",{"$f":"J39+I65","v":0.30000000000000004}]
[null,null,null,null,null,null,null,null,null,null,null,null,null,null,"Comercial ","Aumentado","Sin sub","Medio",{"$f":"K39+I66","v":0.4}]
[null,"Tamaño poblacion/ 121-180",7,null,"Total",null,null,null,null,null,null,null,null,null,"Comercial ","Mantenido","Sin sub","Medio",{"$f":"J39+I66","v":0.1}]
[null,"Valor",{"$f":"HLOOKUP(C34,H15:N20,6,0)","v":0},null,{"$f":"C26+C29+C32+C35","v":0},null,null,null,null,null,null,null,null,null,"Subsistencia",null,"Subsidio","Plano",{"$f":"H56+I65","v":0.25}]
[null,null,null,null,null,null,null,"subsistence vs commerical",null,"price incr, stayed the same, incr",null,null,null,null,"Subsistencia",null,"Subsidio","Medio",{"$f":"H56+I66","v":0.05}]
[null,"Tipo de Agricultura","Precios ",null,null,null,"Tipo de Agricultura/Precios","Subsistencia","Disminuido","Mantenido Igual","Aumentado",null,null,null,"Subsistencia",null,"Sin sub","Plano",{"$f":"I65","v":0.2}]
[null,"Subsistencia","No aplica/subsistencia",null,null,null,"Subsistencia",-0.1,-0.2,0,0.05,null,null,null,"Subsistencia",null,"Sin sub","Medio",{"$f":"I66","v":0}]
[null,"Comercial","Disminuido",null,null,null,"Comercial",0,-0.2,0.1,0.4]
[null,"No aplica","Mantenido Igual"]
[null,null,"Aumentado",null,null,null,"Precios ","Precios ","Tipo de Agricultura","Tipo de Agricultura","Unique","Multiplier"]
[null,null,null,null,null,null,"Subsistencia",1,"Subsistencia",1,{"$f":"H42&\"-\"&J42","v":"1-1"},{"$f":"H38","v":-0.1}]
[null,"Tipo de Agricultura",1,null,"Total",null,"Disminuido",2,"Subsistencia",1,{"$f":"H43&\"-\"&J43","v":"2-1"},{"$f":"I38","v":-0.2}]
[null,"Precios",1,null,{"$f":"C45","v":-0.1},null,"Mantenido Igual",3,"Subsistencia",1,"3-1",{"$f":"J38","v":0}]
[null,"Valor",{"$f":"VLOOKUP(C44&\"-\"&C43,K42:L53,2,0)","v":-0.1},null,null,null,"Aumentado",4,"Subsistencia",1,"4-1",{"$f":"K38","v":0.05}]
[null,null,null,null,null,null,"Subsistencia",1,"Comercial",2,"1-2",{"$f":"H39","v":0}]
[null,null,null,null,null,null,"Disminuido",2,"Comercial",2,"2-2",{"$f":"I39","v":-0.2}]
[null,null,null,null,null,null,"Mantenido Igual",3,"Comercial",2,"3-2",{"$f":"J39","v":0.1}]
[null,null,null,null,null,null,"Aumentado",4,"Comercial",2,"4-2",{"$f":"K39","v":0.4}]
[null,null,null,null,null,null,"Subsistencia",1,"NA",3,"1-3",-0.2]
[null,null,null,null,null,null,"Disminuido",2,"NA",3,"2-3",-0.2]
[null,null,null,null,null,null,"Mantenido Igual",3,"NA",3,"3-3",0]
[null,null,null,null,null,null,"Aumentado",4,"NA",3,"4-3",0]
[]
[null,"Subsidios",null,null,null,null,"Subsidios"]
[null,"Si ",null,null,null,null,"Con Subsidio",0.05]
[null,"No",null,null,null,null,"Sin Subsidio",0]
[null,"No aplica",null,null,null,null,"No Aplica",0]
[]
[]
[null,"Subsidio",1,null,"Total"]
[null,"Valor",{"$f":"IF(C61=1,H56,H57)","v":0.05},null,{"$f":"C62","v":0.05}]
[]
[null,"Pendiente",null,null,null,null,"Pendiente","Unique","Multiplier"]
[null,"Plano",null,null,null,null,"Plano",1,0.2]
[null,"Media",null,null,null,null,"Media",2,0]
[null,"Empinado",null,null,null,null,"Empinado",3,-0.3]
[]
[null,"Pendiente",1,null,"Total"]
[null,"Valor",{"$f":"(VLOOKUP(C69,H65:I71,2,0))","v":0.2},null,{"$f":"C70","v":0.2}]
[]
[]
[]
[null,"Cobertura de Copa"]
[]
[null,"Cobertura histórica",{"$f":"'Ingreso de Datos_General'!H21/100","v":0},null,"Total (4)",null,"Tendencia Negativa",0.5]
[null,"Cobertura reciente",{"$f":"'Ingreso de Datos_General'!H25/100","v":0},null,{"$f":"C85","v":{"$error":"#DIV/0!"}},null,"Tendencia positiva",0]
[null,"Diferencia (cobertura)",{"$f":"C77-C76","v":0}]
[null,"Cambio porcentual",{"$f":"C78/C76","v":{"$error":"#DIV/0!"}}]
[null,"Año (1)",{"$f":"'Ingreso de Datos_General'!H27","v":0}]
[null,"Año (2)",{"$f":"'Ingreso de Datos_General'!H23","v":0}]
[null,"Diferencia (tiempo)",{"$f":"C80-C81","v":0}]
[null,"Cambio porcentual 10 años",{"$f":"(C79/C82)*10","v":{"$error":"#DIV/0!"}}]
[null,"Trend",-0.1]
[null,"Valor",{"$f":"IF(C83<C84,H76,H77)","v":{"$error":"#DIV/0!"}}]
[]
[null,"Manglares"]
[null,"Fragmentacion",null,null,null,null,"Fragmentacion","Valor"]
[null,"Muy bajo",null,null,null,null,"Muy bajo",1]
[null,"Bajo",null,null,null,null,"Bajo",2]
[null,"Medio",null,null,null,null,"Medio",3]
[null,"Alto",null,null,null,null,"Alto",5]
[null,"Muy alto",1,null,null,null,"Muy alto",7]
[]
[null,"Fragmentacion",{"$f":"IF(C93=1,1,(IF(C93=2,2,(IF(C93=3,3,IF(C93=4,5,IF(C93=5,7,0)))))))","v":1}]
[]
[]
[null,"Antropizacion",null,null,null,null,"Antropizacion","Valor"]
[null,"0.01 - 10.00",null,null,null,null,"0.01 - 10.00",1]
[null,"10.01 - 20.00",null,null,null,null,"10.01 - 20.00",2]
[null,"20.01 - 30.00",null,null,null,null,"20.01 - 30.00",3]
[null,"30.01 - 40.00",null,null,null,null,"30.01 - 40.00",4]
[null,"40.01 - 50.00",null,null,null,null,"40.01 - 50.00",5]
[null,"50.01 - 60.00",null,null,null,null,"50.01 - 60.00",6]
[null,"60.01 - 70.00",null,null,null,null,"60.01 - 70.00",7]
[null,"70.01 - 80.00",null,null,null,null,"70.01 - 80.00",8]
[null,"80.01 - 90.00",null,null,null,null,"80.01 - 90.00",9]
[null,"90.01 - 100.00",null,null,null,null,"90.01 - 100.00",0]
[null,null,null,null,"Total"]
[null,"Atropizacion",1,null,{"$f":"C110+C95","v":2}]

{"sheet":"Changes","index":4,"n_rows":9,"n_cols":7,"rows_kept":9,"cut":false,"hidden":true,"merged":[]}
["**Updates: V2.0 to V3.0, summer 2022"]
["Tab","Cell","Change","Notes","Done?","Notable Update?","notes2"]
["Ingreso de Datos","Many","Change characters in info buttons to non-accented characters",null,"Yes","No"]
["Data","H10","Update to skew additional? Perhaps 0.25","Currently, a lack of  a long term conservation plan/protection has a score of 0, which is neither add/l nor non-/add'l. Also noting that no short-term plan is also a score of 0, which seems fine to me.","No","No","maybe do some testing w this. "]
["Data","K24","Update divisor to 4","The rest of the row divides by 4, not 5. Update for consistency","Yes","No","update this."]
["Data","K43, L50","Increase weight of this? Perhaps to 0.1","Even if it is subsistence ag, I feel like there could be incentive to farm a bit more to sell","No","No"]
["Ingreso de Datos, Data","many","Additionality of Mangroves","Add in, if able, Beto's work (new tab, I suspect)","No","No"]
["Data","Rows 19-28","MAYBE: change pop to % instead of just values","Look into study - see if there are any % mentioned, rather than population. Only way to have strong add'ty is if the pop is huge.","No","No","flag this for the WG."]
["Data",null,"lack of PMF should not have a negative skew","Remove this question. Make clear that if they do have a PMF, they should do IFM/do not need the tool.","Partially","Yes","do this. Make sure to test (just in case things that shouldn'tpass do because of the removal of this question)"]